[Event "Polish Youth B18 Championship 2023"]
[Site "Jastrzebia Gora"]
[Date "2023.03.18"]
[Round "8.5"]
[White "Kacprzak, Kacper"]
[Black "Taranowicz, Michal"]
[Result "1-0"]
[ECO "B09"]
[WhiteElo "2248"]
[BlackElo "1900"]
[Annotator "TA"]
[PlyCount "115"]
[EventDate "2023.03.11"]
[EventType "swiss"]
[EventCountry "POL"]
[SourceTitle "playchess.com"]
[Source "ChessBase"]
[SourceQuality "1"]
[TimeControl "40/5400+30:1800+30"]

{[%evp 21,115,27,28,0,0,14,0,-23,0,0,-6,-7,0,-6,18,21,20,0,0,-1,-1,-8,-2,-5,-4,-48,-46,-116,-116,-126,-124,-125,-125,-129,-77,-93,-90,-90,-27,-121,-81,-120,-120,-122,-118,-107,-39,-39,0,0,24,0,0,0,0,0,0,14,85,82,147,138,122,128,128,131,212,212,212,188,227,37,300,80,77,21,47,49,209,212,360,184,176,173,1477,1242,5081,2335,29975,29974,29977,29978,29981,29982,29977,29977]} 1. e4 {[%emt 0:00:02]} d6 {[%emt 0:01:48]} 2. d4 {[%emt 0:00:05]} Nf6 {[%emt 0:00:06]} 3. Nc3 {[%emt 0:00:05]} g6 {[%emt 0:00:04]} 4. f4 {[%emt 0:01:10]} Bg7 {[%emt 0:00:10]} 5. Nf3 {[%emt 0:00:05]} O-O {[%emt 0:00:07]} 6. Bd3 {[%emt 0:00:29]} Nc6 {[%emt 0:00:06]} 7. e5 {[%emt 0:01:05]} dxe5 {[%emt 0:00:12]} 8. fxe5 {[%emt 0:00:56]} Nh5 {[%emt 0:00:55]} 9. Be3 {[%emt 0:01:22]} Bg4 {[%emt 0:00:26]} 10. Be2 {[%emt 0:01:59]} f6 {[%emt 0:00:44]} 11. exf6 {[%emt 0:00:41]} exf6 {[%emt 0:00:05]} 12. Qd2 {[%emt 0:07:33] B09: Pirc Defence: Austrian Attack.} Re8 {[%emt 0:02:39]} 13. O-O-O {[%emt 0:02:34]} Ne7 $1 {[%emt 0:03:33] [#] Threatens to win with ...Nf5.} 14. Qd3 $146 {[%emt 0:22:00] The position is equal.} ({Predecessor:} 14. Ne5 Bxe2 15. Qxe2 fxe5 16. dxe5 Qc8 17. g4 Nf5 18. gxf5 Qxf5 19. Qc4+ Qf7 20. Qxf7+ Kxf7 21. Rd7+ Kg8 22. Nd5 Bxe5 23. Bg5 {½-½ Tate,A (2342)-Rasik,V (2475) Pardubice Czech op 22nd 2011 (8)}) 14... c6 {[%emt 0:03:34]} 15. Kb1 {[%emt 0:08:32]} b5 {[%emt 0:05:30]} 16. Rhe1 {[%emt 0:06:59]} Be6 {[%emt 0:23:46]} 17. Nh4 {[%emt 0:06:14]} b4 {[%emt 0:05:03]} (17... Bc4 $5 18. Qd2 $8 Bxe2 19. Rxe2 b4 $11) 18. Na4 {[%emt 0:00:49]} Qa5 {[%emt 0:01:55]} (18... Nd5 {feels hotter.} 19. Bxh5 Qa5 20. b3 gxh5 21. Bd2 Qb5) 19. Qa6 {[%emt 0:05:52]} (19. b3 {looks sharper.} Nd5 20. Bxh5 gxh5 21. Bd2) 19... Qxa6 {[%emt 0:06:58]} ({Don't play} 19... Qd5 20. Nc5 Bf8 21. Nxe6 Qxe6 22. g4 $16 (22. Bd2 Qd6 $16)) 20. Bxa6 {[%emt 0:00:10]} Bg4 {[%emt 0:05:44]} 21. Rc1 {[%emt 0:03:26]} g5 {[%emt 0:03:13]} 22. Nf3 {[%emt 0:02:12]} Nf5 {[%emt 0:01:03]} 23. Bg1 {[%emt 0:05:56]} Nf4 $1 {[%emt 0:03:17]} 24. Bf1 {[%emt 0:03:15]} ({Better is} 24. Bb7 $15) 24... Bxf3 $17 {[%emt 0:01:57]} 25. gxf3 {[%emt 0:00:08]} Nh4 $1 {[%emt 0:00:04] A dynamic duo of knights.} 26. Bc4+ {[%emt 0:00:39]} Kh8 {[%emt 0:01:09]} 27. Rf1 {[%emt 0:01:48]} Bf8 {[%emt 0:03:02]} ({Not} 27... Ne2 28. Bxe2 Rxe2 29. c3 $11) (27... Nh3 $142 28. d5 Nxg1 29. Rxg1 Nxf3) 28. Rcd1 {[%emt 0:01:21][%cal Bc1d1,Bd1d2,Bd2d6][%mdl 32]} Rad8 {[%emt 0:00:58]} 29. c3 {[%emt 0:01:50]} Nhg2 {[%emt 0:02:12]} (29... Nh3 $17 30. Bf2 Nxf3) 30. Kc2 {[%emt 0:03:45]} (30. Bf7 $11 {keeps the balance.}) 30... h5 {[%emt 0:05:12][%cal Bh7h5,Bh5h4][%mdl 32]} 31. Rd2 {[%emt 0:01:12]} h4 {[%emt 0:02:52]} 32. Nc5 {[%emt 0:03:37]} bxc3 {[%emt 0:04:11]} 33. bxc3 {[%emt 0:00:05][%cal Oc5e6]} Bxc5 {[%emt 0:06:21]} (33... h3 $17) 34. dxc5 $15 {[%emt 0:00:05]} Kg7 {[%emt 0:02:23]} (34... Rxd2+ $15 35. Kxd2 h3) 35. Rd6 $11 {[%emt 0:02:49]} Rb8 {[%emt 0:01:50]} 36. Bf2 {[%emt 0:06:32] Inhibits Ne1+.} Nd5 {[%emt 0:02:47][%mdl 64] Deflection} 37. Bxd5 {[%emt 0:00:45]} (37. Rxc6 $2 Nge3+ 38. Bxe3 Nxe3+ 39. Kd3 Nxf1 $19) 37... cxd5 {[%emt 0:00:44]} 38. Rxd5 {[%emt 0:00:30]} Re2+ {[%emt 0:00:04]} 39. Rd2 {[%emt 0:00:09]} Rxd2+ {[%emt 0:02:26]} (39... Ne3+ $1 $11 {remains equal.} 40. Bxe3 Rxe3) 40. Kxd2 {[%emt 0:00:00][%mdl 4096] Endgame KRB-KRN} Rb2+ {[%emt 0:00:00]} (40... Nf4 $142) 41. Kd3 $16 {[%emt 0:04:35] And now c6 would win.} Kf7 {[%emt 0:00:34]} 42. Kc4 {[%emt 0:06:45]} Ke7 {[%emt 0:01:07]} 43. Bd4 {[%emt 0:06:22] Rd1 is the strong threat.} Kd7 {[%emt 0:00:14]} (43... f5 $16 {is a better defense.} 44. Rf2 Rxf2 45. Bxf2 g4) 44. Rf2 $1 $18 {[%emt 0:05:41]} (44. Bxf6 $2 {too greedy.} Ne3+ 45. Kd3 Nxf1 $19) 44... Rxf2 {[%emt 0:02:05]} 45. Bxf2 {[%emt 0:00:02] KB-KN} Nf4 {[%emt 0:01:21]} 46. Be3 $2 {[%emt 0:04:23]} (46. Kb5 $18) 46... Ne6 $2 {[%emt 0:00:29][%mdl 8192] [#]} (46... Ng2 $1 $14 47. Bf2 a6) 47. c6+ $2 {[%emt 0:01:08]} Kxc6 $16 {[%emt 0:00:11]} 48. Bxa7 {[%emt 0:00:03]} ({White should play} 48. Kd3 $16) 48... f5 $11 {[%emt 0:01:25]} 49. Bf2 {[%emt 0:00:39]} Nf4 $2 {[%emt 0:01:08] [#]} (49... h3 $1 $14) 50. Kd4 $1 $18 {[%emt 0:00:58] Black must now prevent Be3.} Nh3 {[%emt 0:01:36]} (50... Kd6 $142 51. a4 Ne6+ 52. Kc4 Kc6) 51. Be1 {[%emt 0:01:40]} (51. Be3 $142) 51... Ng1 {[%emt 0:00:34]} 52. Ke3 {[%emt 0:00:12] Strongly threatening f4.} Kb5 $2 {[%emt 0:00:31]} (52... Nh3 53. Bd2 Nf4) 53. f4 {[%emt 0:00:43][%mdl 64] Deflection} g4 {[%emt 0:00:45]} 54. Bxh4 {[%emt 0:00:16]} Nf3 {[%emt 0:00:21]} 55. Bg3 {[%emt 0:00:11] White mates.} Kc4 {[%emt 0:01:52]} 56. h4 {[%emt 0:00:46][%cal Bh2h4,Bh4h5,Bh5h6][%mdl 32]} Kxc3 {[%emt 0:00:18]} 57. h5 {[%emt 0:00:04]} Nd4 {[%emt 0:00:07]} 58. h6 {[%emt 0:00:10] Weighted Error Value: White=0.32/Black=0.34} 1-0

[Event "Polish Youth B18 Championship 2023"]
[Site "Jastrzebia Gora"]
[Date "2023.03.18"]
[Round "8.6"]
[White "Chyzy, Jakub"]
[Black "Ciszewski, Krzysztof"]
[Result "1-0"]
[ECO "B92"]
[WhiteElo "2250"]
[BlackElo "2047"]
[Annotator "TA"]
[PlyCount "89"]
[EventDate "2023.03.11"]
[EventType "swiss"]
[EventCountry "POL"]
[SourceTitle "playchess.com"]
[Source "ChessBase"]
[SourceQuality "1"]
[TimeControl "40/5400+30:1800+30"]

{[%evp 16,88,18,13,25,10,22,19,19,23,22,27,16,19,32,18,15,14,16,0,0,0,0,0,8,0,0,-31,-35,-22,-24,-74,-59,-60,-66,-61,-60,-68,-47,-58,-6,-47,-54,-45,-17,-59,-29,-124,-72,-79,0,-88,-39,-31,-29,-18,0,0,143,136,420,421,619,616,1120,1045,2052,1532,6170,5522,5414,5406,29997,29998,29999]} 1. e4 {[%emt 0:00:39]} c5 {[%emt 0:00:12]} 2. Nf3 {[%emt 0:00:06]} d6 {[%emt 0:00:09]} 3. d4 {[%emt 0:00:03]} cxd4 {[%emt 0:00:07]} 4. Nxd4 {[%emt 0:00:02]} Nf6 {[%emt 0:00:14]} 5. Nc3 {[%emt 0:00:02]} a6 {[%emt 0:00:07]} 6. Be2 {[%emt 0:00:03]} e5 {[%emt 0:01:02]} 7. Nb3 {[%emt 0:00:06]} Be7 {[%emt 0:00:07]} 8. O-O {[%emt 0:00:07]} O-O {[%emt 0:00:08]} 9. Qd3 {[%emt 0:00:04]} b5 {[%emt 0:04:53] B92: Sicilian Najdorf: 6 Be2.} 10. a4 {[%emt 0:08:03]} b4 {[%emt 0:00:49]} 11. Nd5 {[%emt 0:00:09]} Nxd5 {[%emt 0:00:22] The position is equal.} 12. Qxd5 {[%emt 0:00:28]} Ra7 {[%emt 0:00:07]} 13. Be3 {[%emt 0:00:12]} Be6 {[%emt 0:00:13]} 14. Qd2 {[%emt 0:04:24]} Rb7 {[%emt 0:19:22]} 15. a5 {[%emt 0:00:11]} Qc8 {[%emt 0:05:59]} 16. Bb6 {[%emt 0:04:21]} Qc6 {[%emt 0:06:25]} 17. Rfd1 {[%emt 0:16:55] [#]} ({Don't play} 17. Qxb4 Qxc2 18. Nc1 d5 $17) 17... Bc4 $146 {[%emt 0:11:14]} (17... Qxe4 $2 18. Bf3 Qc4 19. Bxb7 $18) ({Predecessor:} 17... Rd7 18. Bf3 Rc8 19. Qxb4 Rb7 20. Qa3 Nd7 21. Be2 Ra8 22. Bd3 Nxb6 23. axb6 Qxb6 24. Na5 Rc7 25. Nb3 Rb7 {1-0 Pulpan,J (2390)-Richter,L (2268) Oberliga Ost-A 1718 2017 (6.1)}) 18. Bg4 {[%emt 0:12:09]} Be6 {[%emt 0:03:07]} (18... Qxe4 $2 19. Bf3 Qg6 20. Bxb7 $18) 19. Be2 {[%emt 0:09:05]} Bc4 {[%emt 0:00:05]} (19... Qxe4 $2 20. Bf3 Qc4 21. Bxb7 $18) 20. Bxc4 {[%emt 0:15:22]} Qxc4 {[%emt 0:00:06]} 21. Ra4 {[%emt 0:00:02]} Qxe4 {[%emt 0:05:39]} 22. Rxb4 {[%emt 0:00:12]} Qc6 {[%emt 0:01:20]} 23. h3 {[%emt 0:07:41]} (23. Rg4 $11) 23... Nd7 $17 {[%emt 0:06:01]} 24. Be3 {[%emt 0:01:12]} Rxb4 {[%emt 0:03:53]} 25. Qxb4 {[%emt 0:00:06]} Rb8 {[%emt 0:02:10]} 26. Qd2 {[%emt 0:05:38]} Nf6 {[%emt 0:02:43]} 27. Qd3 {[%emt 0:09:50]} Qb5 {[%emt 0:09:14]} (27... g6 $15) 28. Qf5 {[%emt 0:03:28]} g6 {[%emt 0:02:54]} 29. Qf3 {[%emt 0:00:36]} Qc4 {[%emt 0:04:17] [#] Hoping for ...e4.} 30. Rd2 {[%emt 0:01:23]} Ne4 {[%emt 0:02:57] Repels Bg5} 31. Re2 {[%emt 0:00:52]} (31. Rd3 $11 {keeps the balance.}) 31... f5 {[%emt 0:04:04]} (31... Rb4 $142 32. Bd2 Ra4) 32. Bb6 {[%emt 0:01:18]} Rc8 {[%emt 0:01:30]} (32... Bg5 $17) 33. Kh2 {[%emt 0:01:26]} (33. Nd2 $1 $11 {remains equal.} Ng5 34. Qb7 Qxe2 35. Qxc8+ Kf7 36. Nf1) 33... Qc6 {[%emt 0:02:41]} ({Black should play} 33... Bg5 $17) 34. Qd3 $15 {[%emt 0:00:26]} Nf6 {[%emt 0:01:28]} 35. Qxa6 {[%emt 0:00:23]} Nd5 {[%emt 0:00:44]} (35... Kf7 $5 {[%cal Rf6d5]}) 36. Rd2 {[%emt 0:00:42][%cal Od2d5] [#] And now Rxd5! would win.} Nxb6 {[%emt 0:01:04]} (36... Rb8 $11) 37. axb6 $16 {[%emt 0:00:05]} (37. Qxb6 Qxb6 38. axb6 Rb8 $15) 37... Rb8 $2 {[%emt 0:00:36][%mdl 8192] A mistake that costs the game.} (37... Ra8 $16 {was worth a try.} 38. Na5 Qe4 39. Qc4+ Qxc4 40. Nxc4 Rb8) 38. Qa7 $1 $18 {[%emt 0:00:09][%csl LRb8,LRe7]} Qb7 {[%emt 0:00:44]} (38... Rb7 $142 39. Na5 {[%mdl 64] Deflection} Qa4 40. Qxb7 (40. Nxb7 Qf4+ 41. g3 Qxd2 $14) (40. Qa8+ Kf7 $16) 40... Qf4+ 41. g3 Qxd2) 39. Na5 {[%emt 0:00:22]} Qxb6 {[%emt 0:00:31]} 40. Qxe7 {[%emt 0:00:00]} Qxa5 {[%emt 0:00:00]} 41. Rxd6 {[%emt 0:01:21] Threatening mate with Rd7. KQR-KQR} Qa4 {[%emt 0:03:04]} 42. Qe6+ {[%emt 0:00:58]} Kf8 {[%emt 0:05:01]} 43. Qxe5 {[%emt 0:00:51] Rf6+ would kill now.} Re8 {[%emt 0:00:39]} 44. Qh8+ {[%emt 0:00:13]} Ke7 {[%emt 0:00:07]} 45. Qf6# {[%emt 0:00:05] Weighted Error Value: White=0.17 (very precise) /Black=0.51} 1-0

[Event "Polish Youth B18 Championship 2023"]
[Site "Jastrzebia Gora"]
[Date "2023.03.18"]
[Round "8.7"]
[White "Biesiadecki, Adam"]
[Black "Turski, Bartlomiej"]
[Result "1/2-1/2"]
[ECO "E71"]
[WhiteElo "1761"]
[BlackElo "2352"]
[Annotator "TA"]
[PlyCount "113"]
[EventDate "2023.03.11"]
[EventType "swiss"]
[EventCountry "POL"]
[SourceTitle "playchess.com"]
[Source "ChessBase"]
[SourceQuality "1"]
[TimeControl "40/5400+30:1800+30"]

{[%evp 18,113,31,29,29,28,31,9,51,6,82,78,106,79,68,16,22,39,64,-25,-43,-137,-86,-89,-87,-95,11,10,25,-29,-17,-10,-20,-144,-82,-67,0,-1243,-1194,-1357,-1229,-1357,-1357,-1335,-1331,-1269,-1223,-1140,-1095,-1049,0,0,0,-879,0,0,0,0,0,-77,-85,-73,-70,-84,-18,-19,0,-46,-17,-19,0,0,0,0,0,0,0,0,0,0,0,0,0,0,0,0,12,12,12,0,12,5,12,12,12,0,12,12]} 1. d4 {[%emt 0:00:02]} Nf6 {[%emt 0:00:36]} 2. c4 {[%emt 0:00:06]} g6 {[%emt 0:00:06]} 3. Nc3 {[%emt 0:00:04]} Bg7 {[%emt 0:00:11]} 4. e4 {[%emt 0:00:04]} d6 {[%emt 0:00:05]} 5. h3 {[%emt 0:00:05]} O-O {[%emt 0:00:25]} 6. Be3 {[%emt 0:00:04]} c5 {[%emt 0:00:23]} 7. d5 {[%emt 0:00:04]} e6 {[%emt 0:00:23]} 8. Nf3 {[%emt 0:00:10]} exd5 {[%emt 0:00:43]} 9. exd5 {[%emt 0:00:08]} Na6 {[%emt 0:00:30]} 10. Bd3 {[%emt 0:00:09]} Nb4 {[%emt 0:00:25] E90: King's Indian: Classical: Early deviations and 6 h3.} 11. Be2 $1 {[%emt 0:00:16][%mdl 4] now scores much better than the old 11.Bb1.} Bf5 {[%emt 0:21:09]} 12. Rc1 {[%emt 0:00:06] Inhibits Nc2+.} Qa5 {[%emt 0:10:36] [#]} 13. g4 $146 {[%emt 0:27:42]} (13. Qd2 $5) ({Predecessor:} 13. O-O Nxa2 14. Ra1 Nxc3 15. Rxa5 Nxd1 16. Rxd1 b6 17. Ra2 a5 18. Bf4 Rfe8 19. Kf1 {0-1 Peycheva,G (2150)-Fitzsimons,D (2337) Palic Karadzic Memorial op 2017 (2)}) 13... Bd7 {[%emt 0:11:34] [#]} (13... Be4 $11 {keeps the balance.}) 14. Qd2 $1 $16 {[%emt 0:02:37]} Rfe8 {[%emt 0:09:45]} 15. a3 {[%emt 0:00:54]} Na6 {[%emt 0:00:24][%cal Ob7b5]} 16. Kf1 {[%emt 0:04:36]} (16. O-O $14) 16... b5 $1 $11 {[%emt 0:11:28]} 17. cxb5 {[%emt 0:12:43]} Nc7 {[%emt 0:03:41][%cal Of6d5]} 18. Kg2 {[%emt 0:03:52]} ({Better is} 18. Bc4 $14) 18... Nfxd5 {[%emt 0:04:21][%mdl 64] Decoy} (18... Bxb5 $2 19. Nxb5 Qxd2 20. Nxd2 $18 (20. Bxd2 Rxe2 21. Nxc7 Rc8 $18)) 19. Rhd1 {[%emt 0:06:04] [#]} (19. Nxd5 $15 Qxd2 {[%mdl 64] Remove Defender} 20. Bxd2 Nxd5 21. Bc4) 19... Bxc3 {[%emt 0:10:39]} (19... Nxc3 $142 $1 20. bxc3 Nxb5 21. Bxb5 Qxb5) 20. bxc3 $17 {[%emt 0:01:01]} Nxe3+ {[%emt 0:00:31]} (20... Qxa3 21. Bh6 $18) 21. fxe3 {[%emt 0:00:06]} d5 {[%emt 0:00:43]} (21... Nxb5 $6 22. c4 Qxd2 23. Rxd2 $11) (21... Qxa3 $6 22. Bc4 Nxb5 23. Ng5 $11) (21... Bxb5 $17 22. c4 Qxd2 23. Rxd2 Ba6) 22. c4 $11 {[%emt 0:01:32]} Qxa3 {[%emt 0:06:12]} 23. cxd5 {[%emt 0:01:33]} (23. Rc3 Qb4 $15) (23. Kf2 $142 $1 Qb4 24. Qc2) 23... Bxb5 {[%emt 0:01:46]} 24. Bxb5 {[%emt 0:07:56]} Nxb5 {[%emt 0:00:13]} 25. d6 {[%emt 0:00:15]} (25. Qd3 $1 $11 {was the only way to keep the balance.}) 25... Rad8 {[%emt 0:01:35]} (25... Qxe3 $2 26. Qxe3 Rxe3 27. d7 $18) (25... Rxe3 $142 26. Ra1 Qb3) 26. d7 $17 {[%emt 0:01:48]} Rxe3 {[%emt 0:02:05]} (26... Qxe3 $2 27. dxe8=Q+ Rxe8 28. Qxe3 Rxe3 29. Rxc5 $18) (26... Re7 $15 27. Qd3 Qxd3 28. Rxd3 Rexd7 29. Rxd7 Rxd7 30. Rxc5 a6) 27. Re1 $2 {[%emt 0:14:02][%mdl 8192]} (27. Ra1 $11 Qb3 28. Rab1 (28. Rdb1 $2 Qe6 $19)) 27... Rxf3 $19 {[%emt 0:02:50]} 28. Re8+ {[%emt 0:00:50]} Kg7 {[%emt 0:00:00]} 29. Rxd8 {[%emt 0:02:25]} Rg3+ {[%emt 0:00:07]} (29... Rxh3 30. Rg8+ Kxg8 31. d8=Q+ (31. d8=R+ Kg7 $15) 31... Kg7 32. Qf4 $18) 30. Kf1 {[%emt 0:00:44]} Qf3+ {[%emt 0:00:45]} (30... Rxh3 31. Rg8+ Kxg8 32. d8=Q+ (32. d8=B $2 Qf3+ 33. Qf2 Rh1#) 32... Kg7 33. Qa8 $11 (33. Q8d5 Nd4 $11)) 31. Qf2 {[%emt 0:00:20]} Qh1+ {[%emt 0:00:33][%mdl 64] Skewer, Double Attack} (31... Rxh3 32. Rg8+ (32. Rxc5 $2 Rh1#) 32... Kxg8 33. d8=Q+ (33. d8=R+ Kg7 $15) 33... Kg7 34. Qxf3 (34. Rxc5 $2 Rh1#) 34... Rxf3+ 35. Kg2 $18) 32. Ke2 {[%emt 0:00:07]} Qe4+ {[%emt 0:00:02]} (32... Qxc1 33. Rg8+ (33. Qxg3 $2 Nd4+ 34. Kf2 Qd2+ 35. Kf1 Qe2+ 36. Kg1 Nf3+ $19) 33... Kh6 34. Qxg3 (34. d8=B $2 Nc3#) (34. g5+ $2 Qxg5 $19) 34... Nd4+ 35. Kf2 Qc2+ 36. Kf1 Qc4+ 37. Kg2 Qd5+ 38. Kf2 (38. Kf1 Qc4+ 39. Kg2 Qd5+ 40. Kf2 Qa2+ 41. Kf1 Qc4+ $14) 38... Qa2+ 39. Kf1 Qc4+ 40. Kg2 Qd5+ 41. Kf1 Qc4+ $14) (32... Nc3+ 33. Rxc3 Qe4+ 34. Re3 Qc4+ 35. Kd1 (35. Ke1 Qc1+ 36. Ke2 Qc4+ 37. Kd1 Qd4+ 38. Qd2 Qa1+ 39. Kc2 Qa2+ 40. Kd3 c4+ 41. Kc3 Qa5+ 42. Kc2 Qa2+ 43. Kc3 Qa5+ 44. Kc2 Qa2+ 45. Kc3 $11) 35... Qd4+ 36. Ke2 Qc4+ 37. Ke1 Qc1+ 38. Ke2 Qc4+ $11) 33. Kf1 {[%emt 0:01:18]} Qh1+ {[%emt 0:00:02]} (33... Rxh3 34. Rg8+ (34. Qxc5 Rh1+) 34... Kh6 35. Qd2+ (35. d8=R Rh1+ {[%mdl 64] Skewer}) 35... Re3 36. Qh2+ (36. d8=R Qf3+ 37. Kg1 Qxg4+ 38. Kh1 Qe4+ 39. Kg1 Qg4+ 40. Kh2 Qf4+ 41. Kh1 Qe4+ 42. Kg1 Qg4+ $11) (36. d8=R Qf4+ 37. Kg2 Qf3+ 38. Kg1 Qxg4+ 39. Kh1 Qe4+ 40. Kg1 Qg4+ 41. Kh2 Qf4+ 42. Kh1 Qe4+ 43. Kg1 Qg4+ $11)) 34. Ke2 {[%emt 0:00:06] Rg8+ would kill now.} Qe4+ {[%emt 0:00:01]} (34... Qxc1 35. Rg8+ (35. Qxg3 $2 Nd4+ 36. Kf2 Qd2+ 37. Kf1 Qe2+ 38. Kg1 Nf3+ $19) 35... Kh6 36. Qxg3 (36. d8=B $2 Nc3#) (36. g5+ $2 Qxg5 37. Re8 Nd4+ $19) 36... Nd4+ 37. Kf2 Qc2+ 38. Kf1 Qc4+ 39. Kg2 Qd5+ 40. Kg1 (40. Kf1 Qc4+ 41. Kg2 Qd5+ 42. Kg1 Ne2+ 43. Kf2 Nxg3 $16) 40... Ne2+ 41. Kf2 Nxg3 42. d8=Q Ne4+ 43. Ke3 Qxd8 44. Rxd8 $14) 35. Kf1 {[%emt 0:00:17] The board is on fire.} Rf3 $2 {[%emt 0:02:29]} (35... Rxh3 {leads to mate.} 36. Rg8+ (36. Qxc5 {is a self mate.} Rh1+) 36... Kh6 37. Qd2+ (37. d8=R Rh1+ {[%mdl 64] Skewer}) 37... Re3 38. Qh2+ (38. d8=R Qf4+ 39. Kg2 Qxg4+ 40. Kh2 Qf4+ 41. Kh1 Qe4+ 42. Kg1 Qg4+ 43. Kh2 Qf4+ 44. Kh1 Qe4+ 45. Kg1 Qg4+ 46. Kh2 $11) (38. d8=R Qf4+ 39. Kg2 Qxg4+ 40. Kh2 Qf4+ 41. Kh1 Qe4+ 42. Kg1 Qg4+ 43. Kh1 Qe4+ 44. Kg1 Qg4+ 45. Kh1 Qe4+ $11)) (35... Qd3+ $19 36. Qe2 Qd5) 36. Rg8+ $1 $11 {[%emt 0:00:46][%mdl 64] Decoy} Kxg8 {[%emt 0:00:16]} 37. d8=Q+ {[%emt 0:00:08]} Kg7 {[%emt 0:00:02]} 38. Qdd2 {[%emt 0:01:21]} Nd4 $17 {[%emt 0:01:04]} 39. Rc3 {[%emt 0:02:59] And now Rxf3 would win.} Rxf2+ {[%emt 0:00:10]} 40. Kxf2 {[%emt 0:00:00][%mdl 4096] Endgame KQR-KQN} Ne6 {[%emt 0:00:00]} (40... Qb7 $17 41. Qe3 Qb2+ 42. Kf1 Qb5+ 43. Qd3 Qa5) 41. Qe3 $1 $11 {[%emt 0:03:12]} Qd5 {[%emt 0:09:47]} 42. Ra3 {[%emt 0:02:27]} (42. Rd3 $11 Qb7 43. Qe5+ Kg8 44. g5) 42... h5 {[%emt 0:10:06]} 43. Rxa7 {[%emt 0:02:27] The position is equal.} h4 {[%emt 0:03:10]} 44. Qc3+ {[%emt 0:03:44]} Qd4+ {[%emt 0:03:16]} 45. Qxd4+ {[%emt 0:00:05]} cxd4 {[%emt 0:00:05] KR-KN} 46. Rd7 {[%emt 0:02:01][%cal Ba7d7,Bd7d5,Bd5d4,Bd4a4,Ba4a5][%mdl 32]} Kf6 {[%emt 0:01:16]} 47. Rd5 {[%emt 0:03:15]} Nf4 {[%emt 0:01:24][%csl LRd5,LRh3]} 48. Rxd4 {[%emt 0:00:38]} Nxh3+ {[%emt 0:00:02]} 49. Ke3 {[%emt 0:01:05]} Ng5 {[%emt 0:00:29]} 50. Ra4 {[%emt 0:00:35]} Ne6 {[%emt 0:01:41]} 51. Ra5 {[%emt 0:01:03]} g5 {[%emt 0:02:21]} 52. Ke4 {[%emt 0:00:27][%mdl 1024] White has compensation.} Kg6 {[%emt 0:01:03]} 53. Ke5 {[%emt 0:00:44]} h3 {[%emt 0:00:56]} 54. Ra8 {[%emt 0:01:32]} Kg7 {[%emt 0:00:31]} 55. Ra1 {[%emt 0:01:21]} Kg6 {[%emt 0:00:52]} 56. Ra8 {[%emt 0:01:00]} Kg7 {[%emt 0:00:26]} 57. Ke4 {A brilliant game!   Weighted Error Value: White=0.45/Black=0.36} 1/2-1/2

[Event "Polish Youth B18 Championship 2023"]
[Site "Jastrzebia Gora"]
[Date "2023.03.18"]
[Round "8.8"]
[White "Czernek, Tymon"]
[Black "Wojdak, Jan"]
[Result "1/2-1/2"]
[ECO "C50"]
[WhiteElo "2314"]
[BlackElo "2097"]
[Annotator "TA"]
[PlyCount "84"]
[EventDate "2023.03.11"]
[EventType "swiss"]
[EventCountry "POL"]
[SourceTitle "playchess.com"]
[Source "ChessBase"]
[SourceQuality "1"]
[TimeControl "40/5400+30:1800+30"]

{[%evp 10,84,21,8,22,13,13,14,0,2,22,0,0,-23,-18,-22,-20,-41,-45,-46,-48,-61,-48,-72,-36,-37,-29,-49,-45,-53,-21,-19,-26,-60,-16,-72,0,0,0,-26,6,12,9,0,11,-20,-26,-21,-9,-14,-14,-20,-14,-41,-18,-13,-19,-27,-26,-29,-10,-22,0,-39,-34,-37,0,0,0,0,0,0,0,0,0,0,0]} 1. e4 {[%emt 0:00:06]} e5 {[%emt 0:00:06]} 2. Nf3 {[%emt 0:00:03]} Nc6 {[%emt 0:00:05]} 3. Bc4 {[%emt 0:00:04]} Nf6 {[%emt 0:00:04]} 4. d3 {[%emt 0:00:02]} Bc5 {[%emt 0:00:11]} 5. O-O {[%emt 0:00:13]} d6 {[%emt 0:00:02]} 6. c3 {[%emt 0:00:10]} a5 {[%emt 0:00:06] C54: Giuoco Piano: 4 c3 Nf6, main lines with 5 d4 and 5 d3.} 7. Nbd2 {[%emt 0:00:37]} O-O {[%emt 0:01:31]} 8. h3 {[%emt 0:00:03]} Be6 {[%emt 0:01:22]} 9. Re1 {[%emt 0:03:42]} h6 {[%emt 0:02:30]} 10. Bb3 {[%emt 0:01:34]} Bxb3 {[%emt 0:01:42]} 11. axb3 {[%emt 0:00:27]} Re8 {[%emt 0:03:07]} 12. Nf1 {[%emt 0:01:27]} d5 {[%emt 0:05:07]} 13. Qe2 {[%emt 0:00:20]} Qd7 {[%emt 0:06:22]} 14. Ng3 {[%emt 0:01:14]} Rad8 {[%emt 0:01:46] [#]} 15. Be3 $146 {[%emt 0:13:50]} ({Predecessor:} 15. Nf5 Bf8 16. Nh2 Kh7 17. Ng4 Nxg4 18. hxg4 Qe6 19. g5 g6 20. Nxh6 Bxh6 21. gxh6 dxe4 22. dxe4 Qxb3 {1-0 Dourerassou,J (2477)-Kollars,D (2586) Titled Tuesday intern op 19th May blitz 2020 (3)}) 15... Bxe3 {[%emt 0:08:59]} 16. Qxe3 {[%emt 0:00:48]} dxe4 {[%emt 0:11:40]} 17. dxe4 {[%emt 0:00:25]} Qd3 {[%emt 0:00:59]} 18. Qc5 {[%emt 0:01:32]} Nd7 {[%emt 0:04:00]} 19. Qd5 {[%emt 0:07:32]} Nb6 {[%emt 0:02:37]} (19... Ndb8 $5 {[%cal Rd8d5]} 20. Qc4 Qxc4 21. bxc4 Na6 $15) 20. Qxd3 {[%emt 0:08:01]} Rxd3 {[%emt 0:00:39]} 21. Nf5 {[%emt 0:00:22]} f6 {[%emt 0:11:02]} 22. Ne3 {[%emt 0:00:46]} (22. Red1 $11 Rxd1+ 23. Rxd1) 22... Ra8 {[%emt 0:00:59]} (22... Nd7 $17) 23. Kf1 $11 {[%emt 0:03:32]} Rdd8 {[%emt 0:01:20]} 24. Ke2 {[%emt 0:01:20]} Ne7 {[%emt 0:00:08]} 25. Red1 {[%emt 0:03:15]} Rxd1 {[%emt 0:00:15]} 26. Rxd1 {[%emt 0:00:24]} Kf7 {[%emt 0:03:01]} 27. c4 {[%emt 0:11:35]} Ke8 {[%emt 0:00:34]} 28. Nh4 {[%emt 0:01:42]} Nd7 {[%emt 0:06:16]} 29. Nhf5 {[%emt 0:05:35]} Nxf5 {[%emt 0:01:12]} 30. Nxf5 {[%emt 0:00:01][%mdl 4096] Endgame KRN-KRN} g6 {[%emt 0:00:16]} 31. Nxh6 {[%emt 0:00:11]} Nc5 {[%emt 0:00:26][%csl LRb3,LRe4]} 32. Ke3 {[%emt 0:04:07]} Nxb3 {[%emt 0:01:08]} 33. f4 {[%emt 0:00:49]} exf4+ {[%emt 0:00:33]} 34. Kxf4 {[%emt 0:00:01]} Nc5 {[%emt 0:00:07]} 35. e5 {[%emt 0:04:24]} Ne6+ {[%emt 0:00:43]} 36. Ke3 {[%emt 0:01:40]} (36. Kf3 $5 {[%cal Re5f6]}) 36... f5 {[%emt 0:04:50] [#] And now ...Ke7 would win.} 37. Ng8 {[%emt 0:00:59]} Rd8 {[%emt 0:00:20]} (37... Kf7 $5 38. Nf6 $8 Nc5 $15) 38. Nf6+ {[%emt 0:00:06] The position is equal.} Kf7 {[%emt 0:02:08]} 39. Rd5 {[%emt 0:02:08]} b6 {[%emt 0:00:44]} 40. Rxd8 {[%emt 0:00:00]} Nxd8 {[%emt 0:00:00]} 41. Nd5 {[%emt 0:02:04]} Ne6 {[%emt 0:00:20]} 42. h4 {[%emt 0:00:59]} Kg7 {[%emt 0:04:39] Weighted Error Value: White=0.10 (very precise) /Black=0.10 (very precise)} 1/2-1/2